[Event "Late-Titled-Tuesday-Blitz-October-10-2023"]
[Site "Chess.com"]
[Date "2023.10.10"]
[Round "1"]
[White "midedu"]
[Black "bipe137"]
[Result "1-0"]
[WhiteElo "2071"]
[BlackElo "2522"]
[TimeControl "180+1"]
[EndTime "14:08:36 PDT"]
[Termination "midedu won by checkmate"]

1. e4 {[%clk 0:03:00.2]} 1... c5 {[%clk 0:03:00.3]} 2. Nc3 {[%clk 0:02:59.9]}
2... e6 {[%clk 0:03:00.3]} 3. g3 {[%clk 0:03:00.5]} 3... d5 {[%clk 0:03:00.5]}
4. exd5 {[%clk 0:03:00.4]} 4... exd5 {[%clk 0:03:01.4]} 5. d4 {[%clk 0:03:00.9]}
5... cxd4 {[%clk 0:03:01.6]} 6. Qxd4 {[%clk 0:03:00.5]} 6... Be6 {[%clk
0:03:00.4]} 7. Bg2 {[%clk 0:02:55.8]} 7... Nc6 {[%clk 0:03:00.7]} 8. Qd1 {[%clk
0:02:55.1]} 8... Bb4 {[%clk 0:02:58.2]} 9. Bd2 {[%clk 0:02:53]} 9... Nf6 {[%clk
0:02:54.3]} 10. Nge2 {[%clk 0:02:45.7]} 10... O-O {[%clk 0:02:48.9]} 11. O-O
{[%clk 0:02:42.2]} 11... Qd7 {[%clk 0:02:48.1]} 12. Nb5 {[%clk 0:02:39.3]} 12...
Bc5 {[%clk 0:02:43.2]} 13. Bf4 {[%clk 0:02:28.3]} 13... Rac8 {[%clk 0:02:36.4]}
14. c3 {[%clk 0:02:27.1]} 14... Rfe8 {[%clk 0:02:30.2]} 15. Ned4 {[%clk
0:02:14.1]} 15... Bg4 {[%clk 0:02:27]} 16. f3 {[%clk 0:02:06.3]} 16... Bh3
{[%clk 0:02:25]} 17. Kh1 {[%clk 0:01:57.5]} 17... Bxg2+ {[%clk 0:02:24.5]} 18.
Kxg2 {[%clk 0:01:56.7]} 18... a6 {[%clk 0:02:22.9]} 19. Nb3 {[%clk 0:01:54.3]}
19... Bf8 {[%clk 0:02:02]} 20. N5d4 {[%clk 0:01:50.1]} 20... Ne5 {[%clk
0:02:00.7]} 21. Bxe5 {[%clk 0:01:48.9]} 21... Rxe5 {[%clk 0:02:00.5]} 22. Qd2
{[%clk 0:01:46.7]} 22... Rh5 {[%clk 0:01:59]} 23. Rae1 {[%clk 0:01:41.1]} 23...
Bd6 {[%clk 0:01:58.6]} 24. Kg1 {[%clk 0:01:34.9]} 24... Bb8 {[%clk 0:01:35]} 25.
Re3 {[%clk 0:01:27.3]} 25... Rg5 {[%clk 0:01:26.8]} 26. Qg2 {[%clk 0:01:15.2]}
26... h5 {[%clk 0:01:22.6]} 27. Kh1 {[%clk 0:01:05.8]} 27... h4 {[%clk
0:01:10.6]} 28. g4 {[%clk 0:01:05.7]} 28... Bf4 {[%clk 0:01:10.5]} 29. Re2
{[%clk 0:01:04]} 29... Re5 {[%clk 0:00:53.5]} 30. Rxe5 {[%clk 0:01:02.9]} 30...
Bxe5 {[%clk 0:00:54.4]} 31. Re1 {[%clk 0:01:03.2]} 31... Bb8 {[%clk 0:00:52.5]}
32. Nf5 {[%clk 0:00:59.3]} 32... Re8 {[%clk 0:00:48]} 33. Re2 {[%clk 0:00:43.3]}
33... h3 {[%clk 0:00:45.4]} 34. Qf2 {[%clk 0:00:38.1]} 34... g6 {[%clk
0:00:45.1]} 35. Nfd4 {[%clk 0:00:30.3]} 35... Bf4 {[%clk 0:00:42.2]} 36. Qe1
{[%clk 0:00:25.5]} 36... Rxe2 {[%clk 0:00:40.1]} 37. Qxe2 {[%clk 0:00:25.3]}
37... Kg7 {[%clk 0:00:38.8]} 38. Nc5 {[%clk 0:00:20.9]} 38... Qc8 {[%clk
0:00:36.2]} 39. Nce6+ {[%clk 0:00:20.3]} 39... fxe6 {[%clk 0:00:32.2]} 40. Nxe6+
{[%clk 0:00:20.6]} 40... Kf7 {[%clk 0:00:29.8]} 41. Nxf4 {[%clk 0:00:21.1]}
41... Qc6 {[%clk 0:00:09.6]} 42. Nxh3 {[%clk 0:00:19.6]} 42... Kg7 {[%clk
0:00:08.9]} 43. Qe7+ {[%clk 0:00:12]} 43... Kg8 {[%clk 0:00:08.8]} 44. Ng5
{[%clk 0:00:11.2]} 44... d4 {[%clk 0:00:03.9]} 45. Qe6+ {[%clk 0:00:10.9]} 45...
Kg7 {[%clk 0:00:02.1]} 46. Qxc6 {[%clk 0:00:04.3]} 46... bxc6 {[%clk 0:00:03]}
47. Ne6+ {[%clk 0:00:01.9]} 47... Kf7 {[%clk 0:00:03.9]} 48. Nxd4 {[%clk
0:00:02.5]} 48... Nd5 {[%clk 0:00:04.5]} 49. Nxc6 {[%clk 0:00:02.7]} 49... Ne3
{[%clk 0:00:05]} 50. Kg1 {[%clk 0:00:02.7]} 50... Nc2 {[%clk 0:00:05.4]} 51. b4
{[%clk 0:00:02.7]} 51... Ke6 {[%clk 0:00:06.3]} 52. Nb8 {[%clk 0:00:02.4]} 52...
Ne1 {[%clk 0:00:07]} 53. Nxa6 {[%clk 0:00:03]} 53... Nxf3+ {[%clk 0:00:07.9]}
54. Kf2 {[%clk 0:00:03.1]} 54... Ne5 {[%clk 0:00:08.8]} 55. Kg3 {[%clk
0:00:03.7]} 55... Nxg4 {[%clk 0:00:09.4]} 56. h4 {[%clk 0:00:04.2]} 56... Ne3
{[%clk 0:00:09.3]} 57. a4 {[%clk 0:00:03.5]} 57... Kf6 {[%clk 0:00:07.1]} 58. b5
{[%clk 0:00:03]} 58... Nf5+ {[%clk 0:00:08]} 59. Kf4 {[%clk 0:00:02.7]} 59...
Nd6 {[%clk 0:00:08.9]} 60. b6 {[%clk 0:00:02.9]} 60... Nc4 {[%clk 0:00:09.8]}
61. b7 {[%clk 0:00:02.7]} 61... Nb6 {[%clk 0:00:09.9]} 62. b8=Q {[%clk
0:00:02.9]} 62... Nd5+ {[%clk 0:00:10.8]} 63. Kg3 {[%clk 0:00:02.8]} 63... Ne7
{[%clk 0:00:11.7]} 64. Qd6+ {[%clk 0:00:02.8]} 64... Kf7 {[%clk 0:00:12.1]} 65.
Kg4 {[%clk 0:00:02.8]} 65... Nf5 {[%clk 0:00:12.6]} 66. Kg5 {[%clk 0:00:02.9]}
66... Nh6 {[%clk 0:00:13.5]} 67. Qxg6+ {[%clk 0:00:02.3]} 67... Ke7 {[%clk
0:00:13.8]} 68. Qxh6 {[%clk 0:00:02.7]} 68... Ke8 {[%clk 0:00:14.7]} 69. Qg7
{[%clk 0:00:02.4]} 69... Kd8 {[%clk 0:00:15.2]} 70. Kf6 {[%clk 0:00:03.1]} 70...
Ke8 {[%clk 0:00:15.4]} 71. Qe7# {[%clk 0:00:03.2]} 1-0

[Event "Late-Titled-Tuesday-Blitz-October-10-2023"]
[Site "Chess.com"]
[Date "2023.10.10"]
[Round "1"]
[White "Mackster23"]
[Black "UK_23"]
[Result "1-0"]
[WhiteElo "2684"]
[BlackElo "2355"]
[TimeControl "180+1"]
[EndTime "14:08:37 PDT"]
[Termination "Mackster23 won by resignation"]

1. e4 {[%clk 0:03:00.7]} 1... e5 {[%clk 0:02:51.9]} 2. Nf3 {[%clk 0:02:59.2]}
2... Nc6 {[%clk 0:02:48.7]} 3. Bb5 {[%clk 0:02:59.6]} 3... a6 {[%clk 0:02:47.2]}
4. Ba4 {[%clk 0:02:59.2]} 4... Nf6 {[%clk 0:02:46.7]} 5. O-O {[%clk 0:02:59.8]}
5... b5 {[%clk 0:02:46.5]} 6. Bb3 {[%clk 0:02:59.7]} 6... Be7 {[%clk 0:02:47.2]}
7. d3 {[%clk 0:02:59.5]} 7... d6 {[%clk 0:02:47.6]} 8. a3 {[%clk 0:02:59.4]}
8... O-O {[%clk 0:02:47.2]} 9. Nc3 {[%clk 0:02:59.7]} 9... Nb8 {[%clk
0:02:47.1]} 10. Nd5 {[%clk 0:02:54.7]} 10... Nxd5 {[%clk 0:02:44.8]} 11. Bxd5
{[%clk 0:02:54.3]} 11... c6 {[%clk 0:02:44.9]} 12. Ba2 {[%clk 0:02:54.6]} 12...
Kh8 {[%clk 0:02:35.4]} 13. d4 {[%clk 0:02:41.1]} 13... Nd7 {[%clk 0:02:30.6]}
14. c3 {[%clk 0:02:38.2]} 14... c5 {[%clk 0:02:23.8]} 15. dxe5 {[%clk
0:02:32.1]} 15... Nxe5 {[%clk 0:02:23.6]} 16. Nxe5 {[%clk 0:02:22]} 16... dxe5
{[%clk 0:02:24.5]} 17. Qh5 {[%clk 0:02:20]} 17... f6 {[%clk 0:02:13.5]} 18. Be3
{[%clk 0:02:07.1]} 18... c4 {[%clk 0:02:08.4]} 19. Rad1 {[%clk 0:02:06]} 19...
Qe8 {[%clk 0:02:08.9]} 20. Qe2 {[%clk 0:02:02]} 20... Bb7 {[%clk 0:02:07.7]} 21.
Bb1 {[%clk 0:02:00.7]} 21... Qg6 {[%clk 0:02:04.1]} 22. f3 {[%clk 0:01:58.8]}
22... Rfd8 {[%clk 0:02:03.5]} 23. Bb6 {[%clk 0:01:56.4]} 23... Rxd1 {[%clk
0:02:00.2]} 24. Rxd1 {[%clk 0:01:57.3]} 24... Qe8 {[%clk 0:01:59.9]} 25. Rd2
{[%clk 0:01:53.7]} 25... Qc6 {[%clk 0:01:59.6]} 26. Bf2 {[%clk 0:01:50.7]} 26...
Rd8 {[%clk 0:01:55.2]} 27. Qd1 {[%clk 0:01:46.2]} 27... Rxd2 {[%clk 0:01:54.2]}
28. Qxd2 {[%clk 0:01:47.1]} 28... Qd6 {[%clk 0:01:54.6]} 29. Qe2 {[%clk
0:01:36.1]} 29... Kg8 {[%clk 0:01:50.5]} 30. a4 {[%clk 0:01:32.1]} 30... Bc6
{[%clk 0:01:48.4]} 31. h4 {[%clk 0:01:22.7]} 31... h5 {[%clk 0:01:47.3]} 32. Ba2
{[%clk 0:01:19]} 32... Qd7 {[%clk 0:01:41.2]} 33. axb5 {[%clk 0:01:16.3]} 33...
axb5 {[%clk 0:01:42.1]} 34. b3 {[%clk 0:01:15.9]} 34... cxb3 {[%clk 0:01:39.4]}
35. Bxb3+ {[%clk 0:01:16.8]} 35... Kf8 {[%clk 0:01:39.8]} 36. Qa2 {[%clk
0:01:14.3]} 36... g6 {[%clk 0:01:15.7]} 37. Bf7 {[%clk 0:00:57.1]} 37... Kg7
{[%clk 0:01:14.7]} 38. Bxg6 {[%clk 0:00:57.2]} 38... Bf8 {[%clk 0:00:45.1]} 39.
Bxh5 {[%clk 0:00:50.3]} 39... f5 {[%clk 0:00:41.5]} 40. exf5 {[%clk 0:00:45.5]}
40... Qxf5 {[%clk 0:00:42.4]} 41. Bg4 {[%clk 0:00:45.5]} 41... Qf4 {[%clk
0:00:39.6]} 42. Qc2 {[%clk 0:00:40.3]} 42... e4 {[%clk 0:00:38.8]} 43. Bd4+
{[%clk 0:00:34]} 43... Kh7 {[%clk 0:00:39]} 44. Qe2 {[%clk 0:00:20.6]} 44... Bd6
{[%clk 0:00:38.3]} 45. fxe4 {[%clk 0:00:16.3]} 45... Bxe4 {[%clk 0:00:31]} 46.
Bf3 {[%clk 0:00:11.7]} 46... Qh2+ {[%clk 0:00:24.1]} 47. Kf1 {[%clk 0:00:11.7]}
47... Bg6 {[%clk 0:00:15.5]} 48. Be4 {[%clk 0:00:10.2]} 48... Qf4+ {[%clk
0:00:11]} 49. Bf3 {[%clk 0:00:09.6]} 49... Qxh4 {[%clk 0:00:08.1]} 50. Bg1
{[%clk 0:00:08.7]} 50... Qf4 {[%clk 0:00:07.7]} 51. Qe3 {[%clk 0:00:08.6]} 51...
Qc4+ {[%clk 0:00:05.3]} 52. Be2 {[%clk 0:00:08.6]} 52... Qf7+ {[%clk 0:00:04.9]}
53. Bf2 {[%clk 0:00:09.3]} 53... Qf5 {[%clk 0:00:04.7]} 54. Qh3+ {[%clk
0:00:09.1]} 54... Qxh3 {[%clk 0:00:04.2]} 55. gxh3 {[%clk 0:00:10]} 55... Bf5
{[%clk 0:00:05]} 56. Kg2 {[%clk 0:00:10.5]} 56... Bd7 {[%clk 0:00:04.5]} 57. Bf3
{[%clk 0:00:10.9]} 57... Be5 {[%clk 0:00:04.8]} 58. Be1 {[%clk 0:00:10.9]} 58...
Kh6 {[%clk 0:00:04.6]} 59. Bd2+ {[%clk 0:00:10.6]} 59... Kg6 {[%clk 0:00:05.1]}
60. h4 {[%clk 0:00:11.4]} 60... Kf6 {[%clk 0:00:05.6]} 61. Kf2 {[%clk
0:00:10.7]} 61... Bf5 {[%clk 0:00:05.2]} 62. Ke2 {[%clk 0:00:10.4]} 62... Ke6
{[%clk 0:00:05.6]} 63. Kd1 {[%clk 0:00:10.4]} 63... Kd6 {[%clk 0:00:06.1]} 64.
Kc1 {[%clk 0:00:10.5]} 64... Kc5 {[%clk 0:00:06.7]} 65. Be2 {[%clk 0:00:09.8]}
65... Be6 {[%clk 0:00:06.6]} 66. Be3+ {[%clk 0:00:09.7]} 66... Kc6 {[%clk
0:00:06.7]} 67. Kc2 {[%clk 0:00:09.9]} 67... Bc4 {[%clk 0:00:06.3]} 68. Bxc4
{[%clk 0:00:07.5]} 68... bxc4 {[%clk 0:00:07.2]} 69. h5 {[%clk 0:00:07.9]} 69...
Bg7 {[%clk 0:00:05]} 70. h6 {[%clk 0:00:07.7]} 70... Bh8 {[%clk 0:00:05.6]} 71.
Bd4 {[%clk 0:00:07.6]} 1-0

[Event "Late-Titled-Tuesday-Blitz-October-10-2023"]
[Site "Chess.com"]
[Date "2023.10.10"]
[Round "1"]
[White "Szczor"]
[Black "Thormento16"]
[Result "1-0"]
[WhiteElo "2598"]
[BlackElo "2250"]
[TimeControl "180+1"]
[EndTime "14:08:38 PDT"]
[Termination "Szczor won by resignation"]

1. d4 {[%clk 0:02:51.4]} 1... d5 {[%clk 0:02:57.2]} 2. c4 {[%clk 0:02:50.4]}
2... e6 {[%clk 0:02:51.5]} 3. Nf3 {[%clk 0:02:48.5]} 3... Nf6 {[%clk 0:02:50.8]}
4. Nc3 {[%clk 0:02:48.3]} 4... Be7 {[%clk 0:02:50.5]} 5. Bg5 {[%clk 0:02:49.2]}
5... O-O {[%clk 0:02:49.4]} 6. e3 {[%clk 0:02:49.5]} 6... Nbd7 {[%clk
0:02:46.1]} 7. Bd3 {[%clk 0:02:49.4]} 7... dxc4 {[%clk 0:02:45]} 8. Bxc4 {[%clk
0:02:50.3]} 8... a6 {[%clk 0:02:45.9]} 9. O-O {[%clk 0:02:48.2]} 9... b5 {[%clk
0:02:34.4]} 10. Be2 {[%clk 0:02:46.9]} 10... Bb7 {[%clk 0:02:34.9]} 11. Rc1
{[%clk 0:02:46.6]} 11... c5 {[%clk 0:02:34.1]} 12. dxc5 {[%clk 0:02:38.7]} 12...
Nxc5 {[%clk 0:02:35]} 13. Bxf6 {[%clk 0:02:27.7]} 13... Bxf6 {[%clk 0:02:34.2]}
14. Qxd8 {[%clk 0:02:21.1]} 14... Rfxd8 {[%clk 0:02:35.1]} 15. Nxb5 {[%clk
0:02:19]} 15... axb5 {[%clk 0:02:34.4]} 16. Rxc5 {[%clk 0:02:18.6]} 16... Rxa2
{[%clk 0:02:35]} 17. Rxb5 {[%clk 0:02:17.2]} 17... Ba6 {[%clk 0:02:27.3]} 18.
Bc4 {[%clk 0:02:17.1]} 18... Bxb5 {[%clk 0:02:13.7]} 19. Bxa2 {[%clk 0:02:03.2]}
19... Bxf1 {[%clk 0:02:14.6]} 20. Kxf1 {[%clk 0:02:04.1]} 20... Bxb2 {[%clk
0:02:11.2]} 21. Ke2 {[%clk 0:02:02.9]} 21... h6 {[%clk 0:02:04.6]} 22. Bc4
{[%clk 0:02:02.5]} 22... g5 {[%clk 0:02:02.9]} 23. h3 {[%clk 0:01:59.8]} 23...
Bc3 {[%clk 0:02:01]} 24. Bd3 {[%clk 0:01:52.6]} 24... Kf8 {[%clk 0:01:55.1]} 25.
g4 {[%clk 0:01:52]} 25... Ke7 {[%clk 0:01:55]} 26. h4 {[%clk 0:01:50.2]} 26...
f6 {[%clk 0:01:51.4]} 27. hxg5 {[%clk 0:01:47.4]} 27... hxg5 {[%clk 0:01:51.7]}
28. Bc2 {[%clk 0:01:37.9]} 28... f5 {[%clk 0:01:45.4]} 29. gxf5 {[%clk
0:01:35.8]} 29... g4 {[%clk 0:01:43.3]} 30. Ne1 {[%clk 0:00:57]} 30... Rd2+
{[%clk 0:01:24.4]} 31. Kf1 {[%clk 0:00:52.5]} 31... g3 {[%clk 0:01:22]} 32. fxg3
{[%clk 0:00:40.3]} 32... Rh2 {[%clk 0:01:14.6]} 33. Ng2 {[%clk 0:00:39.8]} 33...
Rh1+ {[%clk 0:01:13.7]} 34. Kf2 {[%clk 0:00:37]} 34... e5 {[%clk 0:01:12.2]} 35.
Be4 {[%clk 0:00:31.1]} 35... Ra1 {[%clk 0:01:03.7]} 36. Nh4 {[%clk 0:00:29.7]}
36... Kf6 {[%clk 0:01:00.3]} 37. Nf3 {[%clk 0:00:29.7]} 37... Ra2+ {[%clk
0:00:55.5]} 38. Kf1 {[%clk 0:00:30]} 38... Rb2 {[%clk 0:00:54.3]} 39. g4 {[%clk
0:00:30.1]} 39... Ra2 {[%clk 0:00:42.8]} 40. g5+ {[%clk 0:00:28.5]} 40... Kg7
{[%clk 0:00:43.5]} 41. f6+ {[%clk 0:00:28.3]} 41... Kf8 {[%clk 0:00:40.9]} 42.
g6 {[%clk 0:00:27.4]} 42... Ra7 {[%clk 0:00:18]} 43. Nh4 {[%clk 0:00:27.8]}
43... Rf7 {[%clk 0:00:13.7]} 44. gxf7 {[%clk 0:00:23.5]} 44... Kxf7 {[%clk
0:00:14.6]} 45. Ke2 {[%clk 0:00:23.4]} 45... Kxf6 {[%clk 0:00:14.9]} 46. Kd3
{[%clk 0:00:23.7]} 46... Ba1 {[%clk 0:00:15.1]} 47. Kc4 {[%clk 0:00:24.3]} 47...
Bb2 {[%clk 0:00:15.1]} 48. Nf3 {[%clk 0:00:23.3]} 48... Bc1 {[%clk 0:00:13.9]}
49. Kd3 {[%clk 0:00:23.9]} 49... Bb2 {[%clk 0:00:14.1]} 50. Bd5 {[%clk 0:00:24]}
50... Ba1 {[%clk 0:00:13.3]} 51. e4 {[%clk 0:00:24.8]} 51... Bb2 {[%clk
0:00:12.5]} 52. Kc4 {[%clk 0:00:24.4]} 52... Ba1 {[%clk 0:00:11.5]} 53. Kc5
{[%clk 0:00:25.1]} 53... Bb2 {[%clk 0:00:09.6]} 54. Bc4 {[%clk 0:00:25.3]} 54...
Ba1 {[%clk 0:00:08.1]} 55. Kd5 {[%clk 0:00:26]} 55... Bb2 {[%clk 0:00:08.6]} 56.
Nh2 {[%clk 0:00:26.2]} 56... Bd4 {[%clk 0:00:08]} 57. Ng4+ {[%clk 0:00:26.7]}
57... Kg5 {[%clk 0:00:07.6]} 58. Nxe5 {[%clk 0:00:27.5]} 58... Ba1 {[%clk
0:00:06.8]} 59. Nc6 {[%clk 0:00:26.6]} 59... Kf6 {[%clk 0:00:07]} 60. Nd4 {[%clk
0:00:26.6]} 60... Ke7 {[%clk 0:00:06.2]} 61. e5 {[%clk 0:00:27.5]} 61... Bb2
{[%clk 0:00:06.5]} 62. e6 {[%clk 0:00:28.2]} 62... Ba3 {[%clk 0:00:06.7]} 63.
Nf5+ {[%clk 0:00:28.9]} 63... Kf6 {[%clk 0:00:06.9]} 64. Bd3 {[%clk 0:00:26.9]}
64... Bf8 {[%clk 0:00:06.8]} 65. Ne3 {[%clk 0:00:26.2]} 65... Ba3 {[%clk
0:00:06.6]} 66. Ng4+ {[%clk 0:00:26.6]} 66... Ke7 {[%clk 0:00:07]} 67. Ne5
{[%clk 0:00:27.3]} 67... Bb4 {[%clk 0:00:05.8]} 68. Nc6+ {[%clk 0:00:27.3]} 1-0

[Event "Late-Titled-Tuesday-Blitz-October-10-2023"]
[Site "Chess.com"]
[Date "2023.10.10"]
[Round "1"]
[White "PapaieDudu"]
[Black "fastestmindalive"]
[Result "0-1"]
[WhiteElo "2377"]
[BlackElo "2700"]
[TimeControl "180+1"]
[EndTime "14:08:39 PDT"]
[Termination "fastestmindalive won by resignation"]

1. e4 {[%clk 0:03:00.2]} 1... c5 {[%clk 0:02:59.8]} 2. Nf3 {[%clk 0:02:59.8]}
2... d6 {[%clk 0:02:56.2]} 3. d4 {[%clk 0:03:00.2]} 3... cxd4 {[%clk 0:02:57.1]}
4. Nxd4 {[%clk 0:03:01]} 4... Nf6 {[%clk 0:02:54]} 5. Nc3 {[%clk 0:03:01.7]}
5... Nc6 {[%clk 0:02:54.5]} 6. f3 {[%clk 0:03:01.5]} 6... e5 {[%clk 0:02:51.5]}
7. Nb3 {[%clk 0:03:01.6]} 7... Be7 {[%clk 0:02:44.1]} 8. Be3 {[%clk 0:03:01.9]}
8... Be6 {[%clk 0:02:42.7]} 9. Qd2 {[%clk 0:03:01.7]} 9... d5 {[%clk 0:02:40.3]}
10. exd5 {[%clk 0:03:00.9]} 10... Nxd5 {[%clk 0:02:39.4]} 11. Nxd5 {[%clk
0:02:56.5]} 11... Qxd5 {[%clk 0:02:40.3]} 12. Qxd5 {[%clk 0:02:56.2]} 12... Bxd5
{[%clk 0:02:41.2]} 13. O-O-O {[%clk 0:02:54.7]} 13... O-O-O {[%clk 0:02:40.8]}
14. Bd3 {[%clk 0:02:49.9]} 14... Nb4 {[%clk 0:02:10.2]} 15. Bf5+ {[%clk
0:02:40]} 15... Kb8 {[%clk 0:02:10]} 16. a3 {[%clk 0:02:37.5]} 16... Nc6 {[%clk
0:02:03.2]} 17. Nc5 {[%clk 0:02:35.5]} 17... Bxc5 {[%clk 0:01:41.1]} 18. Bxc5
{[%clk 0:02:35.3]} 18... b6 {[%clk 0:01:41.6]} 19. Be3 {[%clk 0:02:32.2]} 19...
Kc7 {[%clk 0:01:41]} 20. c3 {[%clk 0:02:25.2]} 20... Bb3 {[%clk 0:01:35]} 21.
Rd2 {[%clk 0:02:23.7]} 21... Rxd2 {[%clk 0:01:34.1]} 22. Kxd2 {[%clk 0:02:24.4]}
22... Rd8+ {[%clk 0:01:34]} 23. Ke2 {[%clk 0:02:25.1]} 23... g6 {[%clk
0:01:33.7]} 24. Bd3 {[%clk 0:02:20.9]} 24... f5 {[%clk 0:01:32.3]} 25. Rc1
{[%clk 0:01:59.9]} 25... Be6 {[%clk 0:01:07.6]} 26. Bc2 {[%clk 0:01:50.1]} 26...
Na5 {[%clk 0:01:05.3]} 27. Rd1 {[%clk 0:01:38.4]} 27... Re8 {[%clk 0:01:00.1]}
28. f4 {[%clk 0:01:27]} 28... Nc4 {[%clk 0:00:55.4]} 29. Bc1 {[%clk 0:01:25]}
29... e4 {[%clk 0:00:52.6]} 30. b3 {[%clk 0:01:22.9]} 30... Na5 {[%clk
0:00:52.3]} 31. c4 {[%clk 0:01:20.8]} 31... Nb7 {[%clk 0:00:47.1]} 32. Bb2
{[%clk 0:01:17.6]} 32... Nc5 {[%clk 0:00:47.4]} 33. Be5+ {[%clk 0:01:16.5]}
33... Kc6 {[%clk 0:00:47.6]} 34. Ke3 {[%clk 0:01:04.5]} 34... Nd7 {[%clk
0:00:45.3]} 35. Bd4 {[%clk 0:00:58.8]} 35... Kb7 {[%clk 0:00:42.5]} 36. Rd2
{[%clk 0:00:44.7]} 36... h6 {[%clk 0:00:42.7]} 37. Bd1 {[%clk 0:00:39.7]} 37...
g5 {[%clk 0:00:42.5]} 38. g3 {[%clk 0:00:35.5]} 38... Rg8 {[%clk 0:00:42.1]} 39.
Be2 {[%clk 0:00:34.1]} 39... a5 {[%clk 0:00:37.7]} 40. b4 {[%clk 0:00:32.1]}
40... axb4 {[%clk 0:00:38.6]} 41. axb4 {[%clk 0:00:33]} 41... Ra8 {[%clk
0:00:38.9]} 42. Rc2 {[%clk 0:00:30.8]} 42... Ra3+ {[%clk 0:00:37.3]} 43. Rc3
{[%clk 0:00:31.4]} 43... Ra2 {[%clk 0:00:36.6]} 44. Bg7 {[%clk 0:00:29.2]} 44...
gxf4+ {[%clk 0:00:29.3]} 45. gxf4 {[%clk 0:00:29.8]} 45... h5 {[%clk 0:00:29.9]}
46. c5 {[%clk 0:00:27.4]} 46... bxc5 {[%clk 0:00:29.4]} 47. bxc5 {[%clk
0:00:28.3]} 47... Kc6 {[%clk 0:00:28.2]} 48. h4 {[%clk 0:00:26]} 48... Ra1
{[%clk 0:00:24.1]} 49. Bxh5 {[%clk 0:00:22.7]} 49... Rh1 {[%clk 0:00:23.9]} 50.
Be2 {[%clk 0:00:05.6]} 50... Rxh4 {[%clk 0:00:23.3]} 51. Bd4 {[%clk 0:00:04.9]}
51... Nf8 {[%clk 0:00:22]} 52. Be5 {[%clk 0:00:03.5]} 52... Ng6 {[%clk
0:00:21.5]} 53. Kd4 {[%clk 0:00:03.2]} 53... Nxf4 {[%clk 0:00:20.5]} 54. Bf1
{[%clk 0:00:03.3]} 54... Nd5 {[%clk 0:00:17.4]} 55. Rb3 {[%clk 0:00:03.2]} 55...
e3+ {[%clk 0:00:18]} 56. Kd3 {[%clk 0:00:02.8]} 56... Nf4+ {[%clk 0:00:18.6]}
57. Bxf4 {[%clk 0:00:01.8]} 57... Bxb3 {[%clk 0:00:19.2]} 58. Bg2+ {[%clk
0:00:02.3]} 58... Bd5 {[%clk 0:00:18.9]} 59. Bxd5+ {[%clk 0:00:02.2]} 59... Kxd5
{[%clk 0:00:19.5]} 60. Kxe3 {[%clk 0:00:02.8]} 60... Kxc5 {[%clk 0:00:18.8]} 61.
Kf3 {[%clk 0:00:03]} 61... Kd5 {[%clk 0:00:18.4]} 62. Bg3 {[%clk 0:00:03.2]}
62... Rg4 {[%clk 0:00:18.4]} 63. Bf2 {[%clk 0:00:03.3]} 63... Ke5 {[%clk
0:00:18.2]} 64. Be3 {[%clk 0:00:03.6]} 64... Re4 {[%clk 0:00:17.8]} 65. Bf2
{[%clk 0:00:03.9]} 65... Rf4+ {[%clk 0:00:17.6]} 66. Ke3 {[%clk 0:00:04]} 66...
Rxf2 {[%clk 0:00:18.5]} 67. Kd3 {[%clk 0:00:03.6]} 67... Rf4 {[%clk 0:00:17.6]}
68. Ke3 {[%clk 0:00:04.1]} 68... Re4+ {[%clk 0:00:18.5]} 69. Kf3 {[%clk
0:00:04.5]} 69... f4 {[%clk 0:00:19.4]} 0-1